[Event "European Online Club-ch-H 2021"]
[Site "Online"]
[Date "2021.03.27"]
[Round "4.6"]
[White "Bromann, Thorbjorn"]
[Black "Danada, Tomas"]
[Result "1/2-1/2"]
[ECO "D01"]
[WhiteElo "2392"]
[BlackElo "2321"]
[Annotator "NA"]
[PlyCount "115"]
[EventDate "2021.03.27"]
[EventType "team-tourn"]
[EventCountry "NET"]
[SourceTitle "playchess.com"]
[Source "ChessBase"]
[SourceQuality "1"]
[TimeControl "900+5"]

1. d4 {[%emt 0:00:00]} Nf6 {[%emt 0:00:03]} 2. Nc3 {[%emt 0:00:03]} d5 {[%emt 0:00:02]} 3. Bg5 {[%emt 0:00:01]} g6 {[%emt 0:00:42]} 4. Qd2 {[%emt 0:00:24]} h6 {[%emt 0:00:17]} 5. Bf4 {[%emt 0:00:12]} a6 {[%emt 0:00:14]} 6. f3 {[%emt 0:00:03]} Nh5 {[%emt 0:00:26]} 7. Be5 {[%emt 0:00:14]} f6 {[%emt 0:00:09]} 8. g4 {[%emt 0:00:21]} fxe5 {[%emt 0:01:50]} 9. gxh5 {[%emt 0:00:04]} Bg7 {[%emt 0:00:02]} 10. dxe5 {[%emt 0:00:15]} Bxe5 {[%emt 0:00:20]} 11. O-O-O {[%emt 0:00:17]} gxh5 {[%emt 0:01:11]} 12. Nxd5 {[%emt 0:01:04]} Nc6 {[%emt 0:00:16]} 13. f4 {[%emt 0:00:39]} e6 {[%emt 0:01:21]} 14. e4 {[%emt 0:04:27]} exd5 {[%emt 0:01:07]} 15. exd5 {[%emt 0:00:09]} Bxb2+ {[%emt 0:02:31]} 16. Kxb2 {[%emt 0:00:00]} Qf6+ {[%emt 0:00:02]} 17. c3 {[%emt 0:00:19]} Ne7 {[%emt 0:00:54]} 18. Re1 {[%emt 0:01:10]} Bf5 {[%emt 0:00:28]} 19. Qe3 {[%emt 0:00:12]} Rh7 {[%emt 0:00:31]} 20. Nf3 {[%emt 0:00:52]} O-O-O {[%emt 0:00:08]} 21. Qa7 {[%emt 0:00:32]} Qb6+ {[%emt 0:00:44]} 22. Qxb6 {[%emt 0:00:02]} cxb6 {[%emt 0:00:01]} 23. c4 {[%emt 0:00:01]} b5 {[%emt 0:00:07]} 24. Nd4 {[%emt 0:01:42]} bxc4 {[%emt 0:01:30]} 25. Rxe7 {[%emt 0:00:35]} Rxe7 {[%emt 0:00:02]} 26. Nxf5 {[%emt 0:00:01]} Re1 {[%emt 0:00:02]} 27. Ng3 {[%emt 0:00:43]} Kc7 {[%emt 0:00:16]} 28. Bxc4 {[%emt 0:01:14]} Rxh1 {[%emt 0:00:06]} 29. Nxh1 {[%emt 0:00:00]} Rf8 {[%emt 0:00:10]} 30. Ng3 {[%emt 0:00:35]} Rxf4 {[%emt 0:00:06]} 31. Kc3 {[%emt 0:00:06]} h4 {[%emt 0:00:20]} 32. Ne2 {[%emt 0:00:02]} Rf2 {[%emt 0:00:19]} 33. Kd4 {[%emt 0:00:09]} b5 {[%emt 0:00:10]} 34. Bd3 {[%emt 0:00:09]} Rxh2 {[%emt 0:00:17]} 35. Ke5 {[%emt 0:00:10]} Rh3 {[%emt 0:01:00]} 36. d6+ {[%emt 0:00:01]} Kd8 {[%emt 0:00:02]} 37. Nf4 {[%emt 0:00:09]} Rxd3 {[%emt 0:00:12]} 38. Nxd3 {[%emt 0:00:03]} h3 {[%emt 0:00:02]} 39. Ke6 {[%emt 0:01:05]} h2 {[%emt 0:00:02]} 40. Nf2 {[%emt 0:00:04]} b4 {[%emt 0:00:06]} 41. Kd5 {[%emt 0:00:05]} Kd7 {[%emt 0:00:06]} 42. Kc5 {[%emt 0:00:01]} a5 {[%emt 0:00:01]} 43. Kb5 {[%emt 0:00:02]} Kxd6 {[%emt 0:00:01]} 44. Kxa5 {[%emt 0:00:06]} Kc5 {[%emt 0:00:01]} 45. Nh1 {[%emt 0:00:13]} Kc4 {[%emt 0:00:03]} 46. Ka4 {[%emt 0:00:07]} Kc3 {[%emt 0:00:05]} 47. Kb5 {[%emt 0:00:04]} b3 {[%emt 0:00:22]} 48. axb3 {[%emt 0:00:02]} Kxb3 {[%emt 0:00:01]} 49. Kc5 {[%emt 0:00:00]} Kc3 {[%emt 0:00:01]} 50. Kd5 {[%emt 0:00:05]} Kd3 {[%emt 0:00:01]} 51. Ng3 {[%emt 0:00:15]} h5 {[%emt 0:00:08]} 52. Ke5 {[%emt 0:00:05]} h4 {[%emt 0:00:01]} 53. Nh1 {[%emt 0:00:01]} Ke3 {[%emt 0:00:02]} 54. Kd5 {[%emt 0:00:07]} Kf3 {[%emt 0:00:05]} 55. Kd4 {[%emt 0:00:03]} Kg2 {[%emt 0:00:16]} 56. Ke3 {[%emt 0:00:02]} Kxh1 {[%emt 0:00:09]} 57. Kf2 {[%emt 0:00:02]} h3 {[%emt 0:00:02]} 58. Kf1 {[%emt 0:00:00]} 1/2-1/2

[Event "European Online Club-ch-H 2021"]
[Site "Online"]
[Date "2021.03.27"]
[Round "4.7"]
[White "Zambor, Norbert"]
[Black "Carstensen, Jacob"]
[Result "1-0"]
[ECO "B51"]
[WhiteElo "2260"]
[BlackElo "2361"]
[Annotator "NA"]
[PlyCount "87"]
[EventDate "2021.03.27"]
[EventType "team-tourn"]
[EventCountry "NET"]
[SourceTitle "playchess.com"]
[Source "ChessBase"]
[SourceQuality "1"]
[TimeControl "900+5"]

1. e4 {[%emt 0:00:00]} c5 {[%emt 0:00:03]} 2. Nf3 {[%emt 0:00:14]} d6 {[%emt 0:00:02]} 3. Bb5+ {[%emt 0:00:12]} Nd7 {[%emt 0:00:01]} 4. O-O {[%emt 0:00:05]} a6 {[%emt 0:00:01]} 5. Bd3 {[%emt 0:00:08]} Ngf6 {[%emt 0:00:02]} 6. c3 {[%emt 0:00:21]} b5 {[%emt 0:00:09]} 7. Bc2 {[%emt 0:00:06]} c4 {[%emt 0:00:02]} 8. Re1 {[%emt 0:00:17]} e6 {[%emt 0:00:05]} 9. b3 {[%emt 0:00:07]} Bb7 {[%emt 0:00:08]} 10. Na3 {[%emt 0:01:13]} Qc7 {[%emt 0:00:23]} 11. Rb1 {[%emt 0:00:51]} cxb3 {[%emt 0:00:20]} 12. axb3 {[%emt 0:00:06]} d5 {[%emt 0:00:15]} 13. exd5 {[%emt 0:00:54]} Bxd5 {[%emt 0:00:04]} 14. c4 {[%emt 0:02:01]} Bb7 {[%emt 0:01:00]} 15. cxb5 {[%emt 0:02:24]} Bb4 {[%emt 0:00:06]} 16. Bd3 {[%emt 0:00:53]} Nc5 {[%emt 0:02:40]} 17. Bf1 {[%emt 0:00:17]} O-O {[%emt 0:00:19]} 18. Nc2 {[%emt 0:00:21]} a5 {[%emt 0:00:35]} 19. Bb2 {[%emt 0:01:55]} Ng4 {[%emt 0:00:54]} 20. Ne5 {[%emt 0:00:32]} Nxe5 {[%emt 0:00:38]} 21. Bxe5 {[%emt 0:00:05]} Qb6 {[%emt 0:00:07]} 22. Nxb4 {[%emt 0:01:25]} axb4 {[%emt 0:00:00]} 23. d4 {[%emt 0:00:29]} Nd7 {[%emt 0:00:07]} 24. Bf4 {[%emt 0:00:47]} Nf6 {[%emt 0:00:08]} 25. Be5 {[%emt 0:00:10]} Nd5 {[%emt 0:00:02]} 26. Bd3 {[%emt 0:00:09]} f6 {[%emt 0:00:07]} 27. Bg3 {[%emt 0:00:12]} Nc3 {[%emt 0:01:36]} 28. Qh5 {[%emt 0:00:25]} f5 {[%emt 0:00:02]} 29. Rbc1 {[%emt 0:00:36]} Qxd4 {[%emt 0:00:16]} 30. Bc4 {[%emt 0:00:03]} Bd5 {[%emt 0:00:13]} 31. Be5 {[%emt 0:00:03]} Qd2 {[%emt 0:00:22]} 32. Bxc3 {[%emt 0:00:10]} bxc3 {[%emt 0:00:02]} 33. Red1 {[%emt 0:00:03]} Bxc4 {[%emt 0:00:43]} 34. bxc4 {[%emt 0:00:08]} Qf4 {[%emt 0:00:41]} 35. Rxc3 {[%emt 0:00:04]} Rfd8 {[%emt 0:00:21]} 36. Rf1 {[%emt 0:00:05]} Ra2 {[%emt 0:00:11]} 37. Qf3 {[%emt 0:00:03]} Qd2 {[%emt 0:00:11]} 38. c5 {[%emt 0:00:04]} Rb2 {[%emt 0:00:07]} 39. b6 {[%emt 0:00:02]} Rb5 {[%emt 0:00:27]} 40. Rcc1 {[%emt 0:00:02]} Qb4 {[%emt 0:00:05]} 41. Qe3 {[%emt 0:00:02]} Kf7 {[%emt 0:00:07]} 42. h3 {[%emt 0:00:02]} Rd5 {[%emt 0:00:05]} 43. Rfe1 {[%emt 0:00:02]} e5 {[%emt 0:00:06]} 44. c6 {[%emt 0:00:06]} 1-0

[Event "European Online Club-ch-H 2021"]
[Site "Online"]
[Date "2021.03.27"]
[Round "4.8"]
[White "Laursen, Niels Norskov"]
[Black "Kusiak, Matej"]
[Result "1-0"]
[ECO "B30"]
[WhiteElo "2228"]
[BlackElo "2251"]
[Annotator "NA"]
[PlyCount "55"]
[EventDate "2021.03.27"]
[EventType "team-tourn"]
[EventCountry "NET"]
[SourceTitle "playchess.com"]
[Source "ChessBase"]
[SourceQuality "1"]
[TimeControl "900+5"]

1. e4 {[%emt 0:00:00]} c5 {[%emt 0:00:03]} 2. Nf3 {[%emt 0:00:03]} Nc6 {[%emt 0:00:01]} 3. Bb5 {[%emt 0:00:04]} Qb6 {[%emt 0:00:05]} 4. Nc3 {[%emt 0:00:43]} e6 {[%emt 0:00:02]} 5. Bxc6 {[%emt 0:01:24]} Qxc6 {[%emt 0:00:03]} 6. O-O {[%emt 0:00:43]} a6 {[%emt 0:00:24]} 7. a4 {[%emt 0:00:47]} b6 {[%emt 0:00:22]} 8. d4 {[%emt 0:00:19]} cxd4 {[%emt 0:00:10]} 9. Nxd4 {[%emt 0:00:01]} Qc7 {[%emt 0:00:03]} 10. Re1 {[%emt 0:00:29]} Bb7 {[%emt 0:00:42]} 11. Qd3 {[%emt 0:01:13]} Nf6 {[%emt 0:00:36]} 12. e5 {[%emt 0:02:32]} Nd5 {[%emt 0:01:16]} 13. Nxd5 {[%emt 0:00:17]} Bxd5 {[%emt 0:00:05]} 14. Qg3 {[%emt 0:00:49]} h5 {[%emt 0:00:52]} 15. h4 {[%emt 0:00:18]} Bb7 {[%emt 0:02:20]} 16. c3 {[%emt 0:00:16]} Rc8 {[%emt 0:01:01]} 17. Bf4 {[%emt 0:00:20]} Qd8 {[%emt 0:00:47]} 18. Rad1 {[%emt 0:00:29]} Rg8 {[%emt 0:01:04]} 19. Bg5 {[%emt 0:01:27]} Be7 {[%emt 0:00:04]} 20. Bxe7 {[%emt 0:00:36]} Qxe7 {[%emt 0:00:02]} 21. f4 {[%emt 0:00:34]} g6 {[%emt 0:01:22]} 22. Nf3 {[%emt 0:00:38]} Rc4 {[%emt 0:00:22]} 23. Ng5 {[%emt 0:00:22]} f6 {[%emt 0:01:41]} 24. exf6 {[%emt 0:00:43]} Qxf6 {[%emt 0:00:05]} 25. Qd3 {[%emt 0:00:20]} Rc7 {[%emt 0:02:08]} 26. Qd6 {[%emt 0:00:07]} Qd8 {[%emt 0:00:20]} 27. Rxe6+ {[%emt 0:00:24]} dxe6 {[%emt 0:00:03]} 28. Qxd8# {[%emt 0:00:02]} 1-0

[Event "European Online Club-ch-H 2021"]
[Site "Online"]
[Date "2021.03.27"]
[Round "4.9"]
[White "Vaisser, Anatoly"]
[Black "Parvanyan, Ashot"]
[Result "1-0"]
[ECO "A69"]
[WhiteElo "2501"]
[BlackElo "2436"]
[Annotator "ChessBase"]
[PlyCount "125"]
[EventDate "2021.03.27"]
[EventType "team-tourn"]
[EventCountry "NET"]
[SourceTitle "playchess.com"]
[Source "ChessBase"]
[SourceQuality "1"]
[TimeControl "900+5"]

1. d4 {[%emt 0:00:00]} Nf6 {[%emt 0:00:04]} 2. c4 {[%emt 0:00:02]} g6 {[%emt 0:00:30]} 3. Nc3 {[%emt 0:00:03]} Bg7 {[%emt 0:00:01]} 4. e4 {[%emt 0:00:03]} d6 {[%emt 0:00:02]} 5. f4 {[%emt 0:00:02]} O-O {[%emt 0:00:02]} 6. Nf3 {[%emt 0:00:03]} c5 {[%emt 0:00:03]} 7. d5 {[%emt 0:00:02]} e6 {[%emt 0:00:02]} 8. Be2 {[%emt 0:00:02]} exd5 {[%emt 0:00:06]} 9. cxd5 {[%emt 0:00:02]} Nbd7 {[%emt 0:01:34]} 10. O-O {[%emt 0:00:10]} Re8 {[%emt 0:00:19]} 11. Nd2 {[%emt 0:00:04]} c4 {[%emt 0:01:28]} 12. Kh1 {[%emt 0:00:11]} b5 {[%emt 0:00:06]} 13. Nxb5 {[%emt 0:00:20]} Nxe4 {[%emt 0:00:28]} 14. Nxe4 {[%emt 0:00:09]} Rxe4 {[%emt 0:00:00]} 15. Bf3 {[%emt 0:00:23]} Re7 {[%emt 0:01:12]} 16. Nxd6 {[%emt 0:00:08]} Ba6 {[%emt 0:00:22]} 17. Ne4 {[%emt 0:04:28]} c3 {[%emt 0:01:28]} 18. Nxc3 {[%emt 0:00:06]} Bxf1 {[%emt 0:00:04]} 19. Qxf1 {[%emt 0:00:04]} Rb8 {[%emt 0:00:43]} 20. f5 {[%emt 0:00:38]} Re8 {[%emt 0:00:34]} 21. Ne4 {[%emt 0:01:29]} Bxb2 {[%emt 0:01:11]} 22. Bxb2 {[%emt 0:00:15]} Rxb2 {[%emt 0:00:00]} 23. fxg6 {[%emt 0:00:39]} hxg6 {[%emt 0:00:06]} 24. Qc1 {[%emt 0:00:52]} Rb4 {[%emt 0:02:13]} 25. Nd6 {[%emt 0:00:30]} Rf8 {[%emt 0:01:04]} 26. a3 {[%emt 0:00:40]} Rb3 {[%emt 0:01:02]} 27. Qd1 {[%emt 0:01:15]} Nc5 {[%emt 0:02:18]} 28. Ne4 {[%emt 0:01:58]} Rd3 {[%emt 0:00:02]} 29. Qc2 {[%emt 0:00:05]} Nxe4 {[%emt 0:00:03]} 30. Bxe4 {[%emt 0:00:04]} Qf6 {[%emt 0:00:13]} 31. Qc1 {[%emt 0:00:52]} Rd4 {[%emt 0:00:04]} 32. Bf3 {[%emt 0:00:03]} Rb8 {[%emt 0:00:05]} 33. Qc7 {[%emt 0:00:40]} Rdb4 {[%emt 0:00:04]} 34. Rc1 {[%emt 0:00:26]} Rb1 {[%emt 0:00:03]} 35. h3 {[%emt 0:00:15]} Rxc1+ {[%emt 0:00:07]} 36. Qxc1 {[%emt 0:00:09]} Qd4 {[%emt 0:00:04]} 37. Qc7 {[%emt 0:00:10]} Rb1+ {[%emt 0:00:03]} 38. Kh2 {[%emt 0:00:03]} Qg1+ {[%emt 0:00:06]} 39. Kg3 {[%emt 0:00:02]} Qe1+ {[%emt 0:00:03]} 40. Kh2 {[%emt 0:00:13]} a5 {[%emt 0:00:04]} 41. Qf4 {[%emt 0:00:28]} Qc1 {[%emt 0:00:09]} 42. Qf6 {[%emt 0:00:10]} Qg1+ {[%emt 0:00:06]} 43. Kg3 {[%emt 0:00:03]} Qe1+ {[%emt 0:00:04]} 44. Kh2 {[%emt 0:00:02]} Qe3 {[%emt 0:00:07]} 45. d6 {[%emt 0:00:04]} Qd2 {[%emt 0:00:06]} 46. Be4 {[%emt 0:00:12]} Rb3 {[%emt 0:00:05]} 47. Bxg6 {[%emt 0:00:05]} fxg6 {[%emt 0:00:06]} 48. Qxg6+ {[%emt 0:00:02]} Kh8 {[%emt 0:00:03]} 49. Qf6+ {[%emt 0:00:04]} Kh7 {[%emt 0:00:03]} 50. Qf7+ {[%emt 0:00:02]} Kh6 {[%emt 0:00:02]} 51. Qxb3 {[%emt 0:00:02]} Qxd6+ {[%emt 0:00:02]} 52. Qg3 {[%emt 0:00:01]} Qd2 {[%emt 0:00:02]} 53. h4 {[%emt 0:00:06]} Qb2 {[%emt 0:00:03]} 54. Qg5+ {[%emt 0:00:04]} Kh7 {[%emt 0:00:01]} 55. Qxa5 {[%emt 0:00:04]} Qb8+ {[%emt 0:00:04]} 56. g3 {[%emt 0:00:06]} Qb2+ {[%emt 0:00:02]} 57. Kh3 {[%emt 0:00:02]} Qe2 {[%emt 0:00:02]} 58. Qf5+ {[%emt 0:00:07]} Kh8 {[%emt 0:00:04]} 59. h5 {[%emt 0:00:06]} Qe1 {[%emt 0:00:09]} 60. Kh4 {[%emt 0:00:14]} Qh1+ {[%emt 0:00:05]} 61. Kg5 {[%emt 0:00:03]} Qc1+ {[%emt 0:00:03]} 62. Kg6 {[%emt 0:00:06]} Qc8 {[%emt 0:00:30]} 63. Qxc8# {[%emt 0:00:04]} 1-0

[Event "European Online Club-ch-H 2021"]
[Site "Online"]
[Date "2021.03.27"]
[Round "4.10"]
[White "Olsen, Filip Boe"]
[Black "Roux, Olivier"]
[Result "1/2-1/2"]
[ECO "A57"]
[WhiteElo "2379"]
[BlackElo "2156"]
[Annotator "NA"]
[PlyCount "154"]
[EventDate "2021.03.27"]
[EventType "team-tourn"]
[EventCountry "NET"]
[SourceTitle "playchess.com"]
[Source "ChessBase"]
[SourceQuality "1"]
[TimeControl "900+5"]

1. d4 {[%emt 0:00:00]} c5 {[%emt 0:00:03]} 2. d5 {[%emt 0:00:03]} Nf6 {[%emt 0:00:03]} 3. c4 {[%emt 0:00:04]} b5 {[%emt 0:00:02]} 4. cxb5 {[%emt 0:00:01]} a6 {[%emt 0:00:02]} 5. e3 {[%emt 0:00:01]} g6 {[%emt 0:00:03]} 6. Nc3 {[%emt 0:00:02]} d6 {[%emt 0:00:03]} 7. Nf3 {[%emt 0:00:01]} Bg7 {[%emt 0:00:07]} 8. a4 {[%emt 0:00:02]} O-O {[%emt 0:00:05]} 9. Ra3 {[%emt 0:00:01]} Nbd7 {[%emt 0:00:21]} 10. Be2 {[%emt 0:00:07]} axb5 {[%emt 0:00:07]} 11. axb5 {[%emt 0:00:03]} Bb7 {[%emt 0:00:23]} 12. O-O {[%emt 0:00:03]} Rxa3 {[%emt 0:00:21]} 13. bxa3 {[%emt 0:00:03]} Qa5 {[%emt 0:00:06]} 14. Qb3 {[%emt 0:00:29]} Ra8 {[%emt 0:00:10]} 15. a4 {[%emt 0:00:27]} Nb6 {[%emt 0:00:08]} 16. Bd2 {[%emt 0:00:02]} Nbxd5 {[%emt 0:01:22]} 17. Bc4 {[%emt 0:00:41]} Nxc3 {[%emt 0:01:10]} 18. Bxf7+ {[%emt 0:00:17]} Kh8 {[%emt 0:00:13]} 19. Bxc3 {[%emt 0:00:22]} Qxa4 {[%emt 0:00:05]} 20. Qxa4 {[%emt 0:00:53]} Rxa4 {[%emt 0:00:05]} 21. Ra1 {[%emt 0:00:05]} Rxa1+ {[%emt 0:00:30]} 22. Bxa1 {[%emt 0:00:03]} Ne4 {[%emt 0:00:17]} 23. Bxg7+ {[%emt 0:00:09]} Kxg7 {[%emt 0:00:02]} 24. Be8 {[%emt 0:00:15]} Kf6 {[%emt 0:01:00]} 25. Kf1 {[%emt 0:00:30]} e6 {[%emt 0:00:43]} 26. Ke2 {[%emt 0:00:42]} Ke7 {[%emt 0:00:23]} 27. Bc6 {[%emt 0:00:03]} Bxc6 {[%emt 0:00:03]} 28. bxc6 {[%emt 0:00:01]} d5 {[%emt 0:00:11]} 29. Ne5 {[%emt 0:00:46]} Kd6 {[%emt 0:00:06]} 30. f4 {[%emt 0:00:01]} Nf6 {[%emt 0:00:33]} 31. h3 {[%emt 0:00:39]} Ng8 {[%emt 0:00:21]} 32. g4 {[%emt 0:00:11]} Ne7 {[%emt 0:00:03]} 33. Nf7+ {[%emt 0:00:06]} Kxc6 {[%emt 0:00:04]} 34. Ng5 {[%emt 0:00:02]} h6 {[%emt 0:00:34]} 35. Nxe6 {[%emt 0:00:06]} Kd6 {[%emt 0:00:05]} 36. Nd8 {[%emt 0:00:07]} Ng8 {[%emt 0:00:14]} 37. Kd3 {[%emt 0:00:30]} Kd7 {[%emt 0:00:43]} 38. Nb7 {[%emt 0:00:18]} Kc6 {[%emt 0:00:03]} 39. Nd8+ {[%emt 0:00:01]} Kd7 {[%emt 0:00:03]} 40. Nf7 {[%emt 0:00:08]} Ke6 {[%emt 0:00:11]} 41. Ne5 {[%emt 0:00:25]} g5 {[%emt 0:00:08]} 42. Nf3 {[%emt 0:00:02]} gxf4 {[%emt 0:00:05]} 43. exf4 {[%emt 0:00:01]} Nf6 {[%emt 0:00:12]} 44. Nh4 {[%emt 0:01:00]} Ne4 {[%emt 0:00:38]} 45. Ke3 {[%emt 0:00:17]} Kf6 {[%emt 0:00:12]} 46. Nf3 {[%emt 0:00:27]} Nd6 {[%emt 0:00:54]} 47. Ne5 {[%emt 0:00:27]} Ne4 {[%emt 0:00:09]} 48. h4 {[%emt 0:00:39]} Ke6 {[%emt 0:00:11]} 49. Nf3 {[%emt 0:00:25]} Nd6 {[%emt 0:00:10]} 50. Ne5 {[%emt 0:00:09]} h5 {[%emt 0:00:29]} 51. gxh5 {[%emt 0:00:10]} Kf5 {[%emt 0:00:41]} 52. h6 {[%emt 0:00:09]} Kf6 {[%emt 0:00:03]} 53. h5 {[%emt 0:01:47]} Nf5+ {[%emt 0:00:04]} 54. Kf3 {[%emt 0:00:06]} c4 {[%emt 0:00:12]} 55. Nd7+ {[%emt 0:01:04]} Kf7 {[%emt 0:00:10]} 56. h7 {[%emt 0:00:03]} Kg7 {[%emt 0:00:03]} 57. Nf6 {[%emt 0:00:07]} c3 {[%emt 0:00:20]} 58. Ke2 {[%emt 0:00:18]} d4 {[%emt 0:00:06]} 59. Kd3 {[%emt 0:00:04]} Ne3 {[%emt 0:00:13]} 60. Ne4 {[%emt 0:01:14]} Kxh7 {[%emt 0:00:46]} 61. Nxc3 {[%emt 0:00:06]} Ng2 {[%emt 0:00:41]} 62. Nd5 {[%emt 0:00:11]} Kh6 {[%emt 0:00:03]} 63. Kxd4 {[%emt 0:00:01]} Kxh5 {[%emt 0:00:06]} 64. f5 {[%emt 0:00:01]} Nh4 {[%emt 0:00:16]} 65. f6 {[%emt 0:00:04]} Kg6 {[%emt 0:00:04]} 66. Ke5 {[%emt 0:00:03]} Nf3+ {[%emt 0:00:05]} 67. Ke6 {[%emt 0:00:03]} Ng5+ {[%emt 0:00:02]} 68. Ke7 {[%emt 0:00:02]} Kf5 {[%emt 0:00:07]} 69. Nc7 {[%emt 0:00:30]} Ke5 {[%emt 0:00:10]} 70. Ne8 {[%emt 0:00:02]} Kf5 {[%emt 0:00:29]} 71. Nd6+ {[%emt 0:00:02]} Kg6 {[%emt 0:00:03]} 72. Ne4 {[%emt 0:00:08]} Nf7 {[%emt 0:00:32]} 73. Nd2 {[%emt 0:00:05]} Nh6 {[%emt 0:00:18]} 74. Nf3 {[%emt 0:00:04]} Ng8+ {[%emt 0:00:02]} 75. Ke6 {[%emt 0:00:04]} Nxf6 {[%emt 0:00:01]} 76. Ne5+ {[%emt 0:00:02]} Kg5 {[%emt 0:00:03]} 77. Ng6 {[%emt 0:00:01]} Kxg6 {[%emt 0:00:02]} 1/2-1/2

[Event "European Online Club-ch-H 2021"]
[Site "Online"]
[Date "2021.03.27"]
[Round "4.11"]
[White "Kirszenberg, Marc"]
[Black "Pajeken, Jakob Leon"]
[Result "0-1"]
[ECO "D27"]
[WhiteElo "2130"]
[BlackElo "2323"]
[Annotator "NA"]
[PlyCount "40"]
[EventDate "2021.03.27"]
[EventType "team-tourn"]
[EventCountry "NET"]
[SourceTitle "playchess.com"]
[Source "ChessBase"]
[SourceQuality "1"]
[TimeControl "900+5"]

1. d4 {[%emt 0:00:00]} d5 {[%emt 0:00:02]} 2. c4 {[%emt 0:00:03]} dxc4 {[%emt 0:00:02]} 3. e3 {[%emt 0:00:02]} Nf6 {[%emt 0:00:03]} 4. Bxc4 {[%emt 0:00:01]} e6 {[%emt 0:00:02]} 5. Nf3 {[%emt 0:00:03]} c5 {[%emt 0:00:01]} 6. O-O {[%emt 0:00:01]} Nc6 {[%emt 0:00:04]} 7. Nc3 {[%emt 0:00:16]} a6 {[%emt 0:00:05]} 8. a4 {[%emt 0:00:45]} Be7 {[%emt 0:00:04]} 9. dxc5 {[%emt 0:01:33]} Qc7 {[%emt 0:00:03]} 10. h3 {[%emt 0:01:00]} Bxc5 {[%emt 0:00:11]} 11. Qe2 {[%emt 0:00:04]} O-O {[%emt 0:00:03]} 12. Rd1 {[%emt 0:00:10]} b6 {[%emt 0:00:16]} 13. Bd2 {[%emt 0:00:05]} Bb7 {[%emt 0:00:04]} 14. Rac1 {[%emt 0:00:01]} Rfd8 {[%emt 0:00:12]} 15. e4 {[%emt 0:00:33]} Nd4 {[%emt 0:00:39]} 16. Nxd4 {[%emt 0:00:02]} Rxd4 {[%emt 0:00:06]} 17. Bg5 {[%emt 0:00:22]} Rxc4 {[%emt 0:00:37]} 18. Bxf6 {[%emt 0:00:25]} gxf6 {[%emt 0:00:05]} 19. Rd3 {[%emt 0:00:53]} Bxe4 {[%emt 0:00:46]} 20. Rg3+ {[%emt 0:00:04]} Qxg3 {[%emt 0:00:06]} 0-1

[Event "European Online Club-ch-H 2021"]
[Site "Online"]
[Date "2021.03.27"]
[Round "4.12"]
[White "Arndt, Magnus"]
[Black "Moingt, Jean-Claude"]
[Result "1/2-1/2"]
[ECO "A45"]
[WhiteElo "2282"]
[BlackElo "2094"]
[Annotator "NA"]
[PlyCount "52"]
[EventDate "2021.03.27"]
[EventType "team-tourn"]
[EventCountry "NET"]
[SourceTitle "playchess.com"]
[Source "ChessBase"]
[SourceQuality "1"]
[TimeControl "900+5"]

1. d4 {[%emt 0:00:00]} Nf6 {[%emt 0:00:04]} 2. Bg5 {[%emt 0:00:18]} g6 {[%emt 0:00:03]} 3. Bxf6 {[%emt 0:00:13]} exf6 {[%emt 0:00:02]} 4. c4 {[%emt 0:00:01]} d5 {[%emt 0:00:27]} 5. cxd5 {[%emt 0:00:26]} Qxd5 {[%emt 0:00:04]} 6. Nc3 {[%emt 0:00:04]} Qd8 {[%emt 0:00:36]} 7. e3 {[%emt 0:00:20]} Bd6 {[%emt 0:00:08]} 8. Bc4 {[%emt 0:00:10]} O-O {[%emt 0:00:04]} 9. Nf3 {[%emt 0:00:11]} Nd7 {[%emt 0:00:23]} 10. Rc1 {[%emt 0:00:12]} f5 {[%emt 0:00:29]} 11. O-O {[%emt 0:00:31]} Nf6 {[%emt 0:00:58]} 12. Nb5 {[%emt 0:00:12]} c6 {[%emt 0:01:17]} 13. Nxd6 {[%emt 0:00:10]} Qxd6 {[%emt 0:00:07]} 14. Qb3 {[%emt 0:00:26]} Ne4 {[%emt 0:01:04]} 15. Rfd1 {[%emt 0:01:04]} b5 {[%emt 0:00:21]} 16. Bd3 {[%emt 0:00:28]} Be6 {[%emt 0:00:04]} 17. Qc2 {[%emt 0:00:07]} Bd5 {[%emt 0:00:03]} 18. Nd2 {[%emt 0:04:53]} Nxd2 {[%emt 0:01:06]} 19. Rxd2 {[%emt 0:00:00]} a5 {[%emt 0:00:33]} 20. a4 {[%emt 0:00:31]} bxa4 {[%emt 0:00:19]} 21. Qxa4 {[%emt 0:00:00]} Rfb8 {[%emt 0:00:04]} 22. Rc5 {[%emt 0:02:53]} Rb4 {[%emt 0:01:32]} 23. Qa3 {[%emt 0:00:07]} Rb3 {[%emt 0:00:08]} 24. Qa4 {[%emt 0:00:23]} Rb4 {[%emt 0:00:05]} 25. Qa3 {[%emt 0:00:03]} Rb3 {[%emt 0:00:02]} 26. Qa4 {[%emt 0:00:42]} Rb4 {[%emt 0:00:03]} 1/2-1/2